bitfinex-derivatives/quotes_BTCF0:USTF0_20230402
["timestamp","ask_amount","ask_price","bid_price","bid_amount"]
[1680465602564,0.05,27951.0,27949.0,0.1391]
[1680465602863,0.05,27951.0,27949.0,0.0891]
[1680465603055,0.1394,27951.0,27947.0,0.05]
[1680465603251,0.3007,27949.0,27946.0,0.1394]
[1680465603551,0.05,27948.0,27946.0,0.1394]
[1680465603759,0.05,27948.0,27946.0,0.0894]
[1680465604156,0.1394,27948.0,27944.0,0.05]
[1680465604357,0.1394,27948.0,27943.0,0.4394]
[1680465604558,0.1394,27948.0,27943.0,0.3894]
[1680465604754,0.3007,27946.0,27943.0,0.3894]
[1680465605161,0.139,27945.0,27943.0,0.3007]
[1680465605368,0.05,27944.0,27943.0,0.3007]
[1680465605758,0.089,27945.0,27943.0,0.3097]
[1680465606160,0.00560534,27944.0,27943.0,0.3097]
[1680465606358,0.00560534,27944.0,27943.0,0.32262938]
[1680465606760,0.00560534,27944.0,27941.0,0.05]
[1680465606962,0.00560534,27944.0,27943.0,0.016]
[1680465607362,0.05560534,27944.0,27943.0,0.016]
[1680465607565,0.05560534,27944.0,27938.0,0.05]
[1680465607566,0.05,27943.0,27938.0,0.1394]
[1680465607866,0.3007,27941.0,27938.0,0.1394]
[1680465608061,0.05,27940.0,27937.0,0.3507]
[1680465608262,0.05,27940.0,27937.0,0.3902]
[1680465608462,0.05,27940.0,27935.0,0.05]
[1680465608463,0.3007,27941.0,27939.0,0.0888]
[1680465608766,0.0895,27941.0,27940.0,0.05]
[1680465609159,0.001,27940.0,27938.0,0.05]
[1680465609355,0.051,27940.0,27938.0,0.05]
[1680465609559,0.0905,27941.0,27940.0,0.021]
[1680465610064,0.001,27940.0,27938.0,0.071]
[1680465610271,0.0895,27939.0,27938.0,0.021]
[1680465610567,0.1395,27939.0,27938.0,0.021]
[1680465611666,0.1395,27939.0,27934.0,0.05]
[1680465611963,0.0888,27937.0,27933.0,0.1394]
[1680465612158,0.05,27936.0,27933.0,0.1394]
[1680465612563,0.05,27936.0,27934.0,0.021]
[1680465612764,0.05,27936.0,27934.0,0.071]
[1680465612965,0.05,27936.0,27934.0,0.021]
[1680465613167,0.051,27936.0,27933.0,0.1104]
[1680465613359,0.0895,27934.0,27933.0,0.021]
[1680465613559,0.1395,27934.0,27933.0,0.021]
[1680465613966,0.051,27936.0,27933.0,0.1105]
[1680465613967,0.001,27936.0,27933.0,0.1105]
[1680465614172,0.001,27936.0,27935.0,0.1789]
[1680465614364,0.05,27941.0,27935.0,0.1789]
[1680465614562,0.05,27941.0,27940.0,0.0887]
[1680465615466,0.002,27941.0,27940.0,0.1077]
[1680465616063,0.002,27941.0,27940.0,0.019]
[1680465616267,0.181,27941.0,27934.0,0.1387]
[1680465616472,0.0895,27936.0,27935.0,0.05]
[1680465616665,0.05,27938.0,27934.0,0.0888]
[1680465617066,0.0888,27935.0,27932.0,0.05]
[1680465617266,0.05,27933.0,27929.0,0.1395]
[1680465617461,0.05,27933.0,27931.0,0.3007]
[1680465617668,0.05,27933.0,27932.0,0.05]
[1680465618073,0.05,27933.0,27929.0,0.1395]
[1680465618465,0.053,27933.0,27929.0,0.1395]
[1680465619868,0.053,27933.0,27929.0,0.0895]
[1680465620061,0.053,27933.0,27929.0,0.1395]
[1680465620573,0.003,27933.0,27930.0,0.05]
[1680465620763,0.003,27933.0,27932.0,0.0895]
[1680465621168,0.003,27933.0,27931.0,0.3007]
[1680465621368,0.053,27933.0,27932.0,0.05]
[1680465621570,0.003,27933.0,27932.0,0.05]
[1680465621768,0.003,27933.0,27931.0,0.3007]
[1680465621969,0.053,27933.0,27931.0,0.3007]
[1680465622173,0.0895,27932.0,27931.0,0.3017]
[1680465622473,0.053,27933.0,27931.0,0.3017]
[1680465623171,0.12357928,27932.0,27931.0,0.3017]
[1680465623569,0.12057928,27932.0,27931.0,0.001]
[1680465623975,0.03167928,27932.0,27931.0,0.001]
[1680465624166,0.03467928,27932.0,27931.0,0.001]
[1680465625372,0.03467928,27932.0,27925.0,0.3507]
[1680465625373,0.05,27931.0,27925.0,0.3007]
[1680465625881,0.0895,27926.0,27925.0,0.3007]
[1680465626075,0.0895,27926.0,27924.0,0.05]
[1680465626375,0.0895,27926.0,27924.0,0.3507]
[1680465626777,0.0895,27926.0,27925.0,0.001]
[1680465627272,0.05,27927.0,27925.0,0.0898]
[1680465627675,0.003,27926.0,27925.0,0.0888]
[1680465628177,0.003,27926.0,27924.0,0.3017]
[1680465628670,0.0889,27925.0,27924.0,0.3017]
[1680465629070,0.0889,27925.0,27924.0,0.3007]
[1680465629272,0.053,27926.0,27921.0,0.3007]
[1680465629578,0.05,27923.0,27921.0,0.3007]
[1680465629970,0.0895,27924.0,27922.0,0.05]
[1680465630174,0.003,27925.0,27922.0,0.1395]
[1680465630473,0.003,27923.0,27922.0,0.1395]
[1680465631572,0.003,27925.0,27922.0,0.1405]
[1680465631971,0.0925,27925.0,27922.0,0.051]
[1680465632580,0.0895,27925.0,27922.0,0.05]
[1680465632773,0.003,27923.0,27922.0,0.051]
[1680465633170,0.05,27924.0,27922.0,0.001]
[1680465633575,0.003,27923.0,27922.0,0.051]
[1680465634179,0.0925,27924.0,27922.0,0.051]
[1680465634871,0.05,27923.0,27922.0,0.001]
[1680465635281,0.1389,27923.0,27920.0,0.05]
[1680465635575,0.053,27923.0,27922.0,0.001]
[1680465635786,0.0925,27923.0,27922.0,0.001]
[1680465636282,0.0925,27923.0,27919.0,0.05]
[1680465636283,0.232,27923.0,27918.0,0.3007]
[1680465636582,0.0895,27920.0,27919.0,0.05]
[1680465636777,0.1784,27920.0,27919.0,0.05]
[1680465636974,0.1395,27922.0,27919.0,0.05]
[1680465637176,0.0889,27920.0,27919.0,0.05]
[1680465637787,0.0889,27920.0,27918.0,0.3007]
[1680465637984,0.229,27919.0,27913.0,0.05]
[1680465638181,0.089,27914.0,27913.0,0.05]
[1680465638380,0.0896,27915.0,27913.0,0.05]
[1680465638579,0.0896,27915.0,27914.0,0.3007]
[1680465638983,0.13569596,27920.0,27914.0,0.3899]
[1680465639186,0.13569596,27920.0,27919.0,0.3007]
[1680465639584,0.04669596,27920.0,27919.0,0.3894]
[1680465639886,0.04669596,27920.0,27919.0,0.6901]
[1680465640083,0.04969596,27920.0,27919.0,0.6014]
[1680465640284,0.003,27920.0,27919.0,0.6514]
[1680465640583,0.003,27920.0,27919.0,0.741]
[1680465640785,0.3247,27925.0,27920.0,0.05]
[1680465640987,0.3507,27927.0,27924.0,0.3894]
[1680465641187,0.05494046,27928.0,27924.0,0.3894]
[1680465641188,0.05494046,27928.0,27925.0,0.05]
[1680465641390,0.1396,27929.0,27925.0,0.05]
[1680465642090,0.058,27928.0,27925.0,0.05]
[1680465642593,1.42713926,27934.0,27925.0,0.05]
[1680465642594,0.46963937,27940.0,27929.0,0.4]
[1680465642782,0.16893937,27940.0,27936.0,0.3899]
[1680465642984,0.3007,27946.0,27939.0,0.3007]
[1680465643185,0.01477265,27939.0,27936.0,0.3899]
[1680465643390,0.05,27939.0,27937.0,0.05]
[1680465644094,0.05,27939.0,27937.0,0.3507]
[1680465644287,0.05,27939.0,27938.0,0.0887]
[1680465644996,0.05,27941.0,27938.0,0.0887]
[1680465645197,0.05,27943.0,27940.0,0.3897]
[1680465645896,0.05,27943.0,27940.0,0.1897]
[1680465646099,0.05,27943.0,27941.0,0.05]
[1680465646493,0.0895,27942.0,27941.0,0.05]
[1680465646794,0.0895,27942.0,27940.0,0.001]
[1680465646993,0.05,27941.0,27940.0,0.001]
[1680465647195,0.05,27941.0,27938.0,0.05]
[1680465647391,0.0889,27939.0,27934.0,0.0896]
[1680465647796,0.0896,27935.0,27932.0,0.05]
[1680465647998,0.0896,27935.0,27930.0,0.0898]
[1680465648304,0.05,27934.0,27932.0,0.05]
[1680465649303,0.3507,27934.0,27931.0,0.3007]
[1680465649499,0.3507,27934.0,27930.0,0.0898]
[1680465649703,0.3507,27934.0,27931.0,0.001]
[1680465650796,0.4891,27932.0,27931.0,0.007]
[1680465651200,0.0888,27932.0,27931.0,0.001]
[1680465651806,0.1792,27932.0,27931.0,0.001]
[1680465651997,0.05,27933.0,27931.0,0.001]
[1680465651998,0.1388,27933.0,27931.0,0.001]
[1680465652401,0.1388,27933.0,27928.0,0.0892]
[1680465652705,0.001,27932.0,27931.0,0.007]
[1680465652905,0.1598,27933.0,27931.0,0.001]
[1680465653101,0.02652559,27932.0,27931.0,0.001]
[1680465653309,0.02652559,27932.0,27929.0,0.05]
[1680465653798,0.02652559,27932.0,27931.0,0.0896]
[1680465654003,0.03252559,27932.0,27931.0,0.0906]
[1680465654304,0.02652559,27932.0,27931.0,0.0896]
[1680465654606,0.03252559,27932.0,27931.0,0.1396]
[1680465654805,0.006,27932.0,27931.0,0.4403]
[1680465655599,0.001,27932.0,27931.0,0.4473]
[1680465655911,0.05,27936.0,27931.0,0.4403]
[1680465656107,0.002,27932.0,27931.0,0.3667]
[1680465656310,0.002,27932.0,27931.0,0.4554]
[1680465656505,0.05,27937.0,27932.0,0.05]
[1680465656706,0.05,27937.0,27936.0,0.1792]
[1680465656908,0.05,27939.0,27936.0,0.2292]
[1680465657209,0.05,27939.0,27938.0,0.0892]
[1680465657910,0.05,27941.0,27938.0,0.0892]
[1680465658105,0.05,27941.0,27940.0,0.0891]
[1680465658313,1.46748475,27950.0,27942.0,0.3555]
[1680465658609,0.00016019,27956.0,27949.0,0.0896]
[1680465658912,0.00016019,27956.0,27953.0,0.0896]
[1680465659210,0.3903,27955.0,27950.0,0.0892]
[1680465659403,0.0889,27952.0,27947.0,0.3895]
[1680465659607,0.0889,27952.0,27949.0,0.002]
[1680465660206,0.05,27951.0,27949.0,0.002]
[1680465661004,0.05,27951.0,27950.0,0.0896]
[1680465661205,0.05,27954.0,27950.0,0.4817]
[1680465661402,0.069,27955.0,27950.0,0.4817]
[1680465661403,0.019,27955.0,27953.0,0.3903]
[1680465661604,0.019,27955.0,27954.0,0.0896]
[1680465661810,0.35086019,27956.0,27954.0,0.0896]
[1680465662011,0.35086019,27956.0,27955.0,0.0887]
[1680465662012,0.30086019,27956.0,27955.0,0.0887]
[1680465662206,0.30086019,27956.0,27955.0,0.1425]
[1680465662716,0.31986019,27956.0,27955.0,0.1425]
[1680465663610,0.01916019,27956.0,27955.0,0.1425]
[1680465664117,0.01916019,27956.0,27955.0,0.1445]
[1680465665416,0.05,27962.0,27957.0,0.05]
[1680465665618,0.05,27962.0,27960.0,0.1427]
[1680465666015,0.05,27964.0,27961.0,0.1426]
[1680465666210,0.05,27964.0,27962.0,0.1425]
[1680465667209,0.05,27964.0,27960.0,0.143]
[1680465667612,0.05,27964.0,27960.0,0.145]
[1680465667916,0.05,27964.0,27962.0,0.002]
[1680465668612,0.05,27964.0,27961.0,0.01521682]
[1680465669214,0.05,27964.0,27962.0,0.002]
[1680465670311,0.05,27964.0,27961.0,0.01521682]
[1680465670312,0.05,27964.0,27961.0,0.01721682]
[1680465670719,0.05,27964.0,27962.0,0.002]
[1680465671321,0.05,27964.0,27961.0,0.01721682]
[1680465671724,0.05,27964.0,27962.0,0.002]
[1680465673119,0.05,27964.0,27961.0,0.01721682]
[1680465673519,0.05,27964.0,27962.0,0.002]
[1680465673922,0.05,27964.0,27961.0,0.01521682]
[1680465674127,0.05,27964.0,27963.0,0.38855333]
[1680465674522,0.10390002,27965.0,27963.0,0.38855333]
[1680465674717,0.05390002,27965.0,27963.0,0.38855333]
[1680465675021,0.3007,27967.0,27964.0,0.1429]
[1680465675226,0.3007,27967.0,27964.0,0.58145333]
[1680465675227,0.05,27966.0,27964.0,0.58145333]
[1680465675526,0.05,27966.0,27964.0,0.38855333]
[1680465675720,0.10464794,27966.0,27965.0,0.38855333]
[1680465676118,0.10464794,27966.0,27965.0,0.53155333]
[1680465676825,0.10464794,27966.0,27965.0,0.53355333]
[1680465677029,0.10464794,27966.0,27965.0,0.39055333]
[1680465677625,0.10464794,27966.0,27965.0,0.53355333]
[1680465678023,0.10464794,27966.0,27965.0,0.39055333]
[1680465679231,0.10464794,27966.0,27965.0,0.53355333]
[1680465679527,0.05,27966.0,27965.0,0.53355333]
[1680465680428,0.40370689,27967.0,27965.0,0.53355333]
[1680465680627,0.05,27966.0,27965.0,0.145]
[1680465680828,0.3007,27967.0,27966.0,0.33855333]
[1680465681032,0.3007,27967.0,27966.0,0.19772703]
[1680465681520,0.35422455,27967.0,27966.0,0.19772703]
[1680465681920,0.35422455,27967.0,27966.0,0.19972703]
[1680465682625,0.79782455,27967.0,27961.0,0.01521682]
[1680465682833,0.3007,27962.0,27961.0,0.01521682]
[1680465683033,0.3507,27962.0,27957.0,0.1429]
[1680465683233,0.05,27961.0,27957.0,0.1429]
[1680465683424,0.05,27961.0,27958.0,0.05]
[1680465684931,0.05,27961.0,27958.0,0.052]
[1680465686325,0.3507,27962.0,27958.0,0.052]
[1680465686529,0.05,27961.0,27958.0,0.3527]
[1680465687426,0.05,27961.0,27960.0,0.143]
[1680465687627,0.3017,27962.0,27960.0,0.143]
[1680465687925,0.05,27965.0,27961.0,0.05]
[1680465687926,0.05,27963.0,27961.0,0.05]
[1680465688125,0.05,27963.0,27960.0,0.143]
[1680465688326,0.05,27963.0,27961.0,0.05]
[1680465688728,0.05,27963.0,27960.0,0.145]
[1680465688924,0.051,27963.0,27961.0,0.001]
[1680465689925,0.1933,27963.0,27961.0,0.001]
[1680465690132,0.051,27963.0,27961.0,0.1439]
[1680465691327,0.051,27963.0,27961.0,0.001]
[1680465691635,0.051,27963.0,27953.0,0.143]
[1680465691636,0.192,27962.0,27953.0,0.143]
[1680465691836,0.05,27957.0,27953.0,0.143]
[1680465692037,0.1923,27957.0,27954.0,0.05]
[1680465693139,0.1943,27957.0,27954.0,0.05]
[1680465693442,0.1923,27957.0,27954.0,0.005]
[1680465694338,0.4434,27955.0,27954.0,0.005]
[1680465695245,0.4434,27955.0,27948.0,0.3007]
[1680465695445,0.142,27949.0,27948.0,0.3007]
[1680465695638,0.05,27951.0,27946.0,0.193]
[1680465696145,0.143,27950.0,27944.0,0.1925]
[1680465696450,0.05,27949.0,27948.0,0.003]
[1680465696838,0.05,27949.0,27946.0,0.001]
[1680465697039,0.06,27951.0,27948.0,0.143]
[1680465697244,0.05,27951.0,27949.0,0.05]
[1680465697642,0.05,27951.0,27948.0,0.146]
[1680465698145,0.05,27951.0,27949.0,0.0017179]
[1680465698349,0.192,27951.0,27949.0,0.0017179]
[1680465699144,0.05,27951.0,27949.0,0.0017179]
[1680465699344,0.10262141,27951.0,27949.0,0.0017179]
[1680465699654,0.06,27951.0,27949.0,0.001]
[1680465701051,0.01,27951.0,27949.0,0.1441]
[1680465701442,0.06,27951.0,27949.0,0.1441]
[1680465701946,0.06,27951.0,27949.0,0.001]
[1680465702144,0.11371602,27951.0,27949.0,0.001]
[1680465703043,0.1431,27950.0,27949.0,0.001]
[1680465703350,0.1931,27950.0,27949.0,0.001]
[1680465703649,0.05,27950.0,27949.0,0.001]
[1680465704235,0.05,27950.0,27947.0,0.1425]
[1680465704436,0.054,27950.0,27947.0,0.1425]
[1680465705852,0.1419,27948.0,27944.0,0.3507]
[1680465706046,0.05,27947.0,27945.0,0.1431]
[1680465706251,0.05354369,27947.0,27946.0,0.05]
[1680465706848,0.00354369,27947.0,27946.0,0.05]
[1680465707447,0.00454369,27947.0,27946.0,0.066]
[1680465707749,0.00454369,27947.0,27946.0,0.016]
[1680465710050,0.00454369,27947.0,27946.0,0.066]
[1680465710263,0.00454369,27947.0,27946.0,0.016]
[1680465716063,0.00454369,27947.0,27946.0,0.1585]
[1680465716772,0.00454369,27947.0,27946.0,0.016]
[1680465721670,0.05,27946.0,27940.0,0.1931]
[1680465721863,0.05,27945.0,27940.0,0.1931]
[1680465722170,0.05,27943.0,27941.0,0.05]
[1680465722371,0.3007,27942.0,27940.0,0.05]
[1680465722575,0.05,27941.0,27939.0,0.05]
[1680465722973,0.05,27941.0,27938.0,0.1427]
[1680465723279,0.3007,27942.0,27939.0,0.05]
[1680465723479,0.053,27941.0,27939.0,0.056]
[1680465723778,0.143,27940.0,27939.0,0.056]
[1680465724275,0.143,27940.0,27939.0,0.006]
[1680465724980,0.143,27940.0,27938.0,0.006]
[1680465725479,0.146,27940.0,27939.0,0.006]
[1680465725677,0.146,27940.0,27936.0,0.05]
[1680465725883,0.146,27940.0,27938.0,0.006]
[1680465726581,0.146,27940.0,27939.0,0.006]
[1680465727277,0.0925,27940.0,27939.0,0.006]
[1680465727678,0.0925,27940.0,27938.0,0.006]
[1680465727875,0.10342887,27940.0,27938.0,0.006]
[1680465728081,0.10342887,27940.0,27939.0,0.006]
[1680465728481,0.10342887,27940.0,27938.0,0.006]
[1680465729087,0.01392887,27940.0,27939.0,0.006]
[1680465729289,0.01392887,27940.0,27939.0,0.4462]
[1680465729472,0.003,27940.0,27939.0,0.4462]
[1680465729678,0.1395,27946.0,27940.0,0.05]
[1680465729985,0.06290463,27945.0,27941.0,0.0888]
[1680465730180,0.06290463,27945.0,27942.0,0.05]
[1680465731190,0.06790463,27945.0,27942.0,0.051]
[1680465731687,0.06790463,27945.0,27942.0,0.001]
[1680465732080,0.06790463,27945.0,27942.0,0.0905]
[1680465735878,0.3901,27943.0,27935.0,0.0889]
[1680465736082,0.3898,27940.0,27935.0,0.0889]
[1680465736284,0.3898,27940.0,27932.0,0.3904]
[1680465736285,0.0895,27936.0,27932.0,0.3904]
[1680465736688,0.0895,27936.0,27933.0,0.05]
[1680465736992,0.05,27935.0,27933.0,0.05]
[1680465737985,0.003,27935.0,27933.0,0.058]
[1680465738187,0.053,27935.0,27933.0,0.058]
[1680465738488,0.003,27935.0,27933.0,0.058]
[1680465738888,0.053,27935.0,27933.0,0.008]
[1680465739793,0.003,27935.0,27933.0,0.008]
[1680465739993,0.003,27935.0,27933.0,0.058]
[1680465740793,0.003,27935.0,27933.0,0.008]
[1680465741794,0.053,27935.0,27933.0,0.008]
[1680465742094,0.1425,27935.0,27933.0,0.008]
[1680465742786,0.02022937,27934.0,27933.0,0.008]
[1680465742986,0.07022937,27934.0,27933.0,0.008]
[1680465743295,0.02022937,27934.0,27933.0,0.008]
[1680465743985,0.02322937,27934.0,27933.0,0.008]
[1680465745295,0.07322937,27934.0,27933.0,0.008]
[1680465745787,0.02322937,27934.0,27933.0,0.008]
[1680465746488,0.02322937,27934.0,27933.0,0.007]
[1680465748691,0.07322937,27934.0,27933.0,0.007]
[1680465749497,0.05,27933.0,27928.0,0.05]
[1680465749695,0.0895,27932.0,27928.0,0.05]
[1680465749993,0.05,27931.0,27928.0,0.05]
[1680465750387,0.3007,27929.0,27928.0,0.05]
[1680465750594,0.3007,27929.0,27927.0,0.1398]
[1680465750796,0.3007,27929.0,27928.0,0.05]
[1680465751093,0.3007,27929.0,27928.0,0.051]
[1680465751490,0.3037,27929.0,27927.0,0.1408]
[1680465751993,0.3037,27929.0,27928.0,0.001]
[1680465752496,0.3037,27929.0,27928.0,0.05]
[1680465752992,0.3037,27929.0,27927.0,0.0908]
[1680465753187,0.3037,27929.0,27927.0,0.0905]
[1680465753591,0.3932,27929.0,27927.0,0.001]
[1680465753997,0.3902,27929.0,27924.0,0.1392]
[1680465754196,0.3932,27929.0,27928.0,0.001]
[1680465754396,0.3932,27929.0,27924.0,0.1392]
[1680465754397,0.3902,27929.0,27924.0,0.1392]
[1680465754696,0.3932,27929.0,27927.0,0.001]
[1680465754892,0.3902,27929.0,27924.0,0.1392]
[1680465755096,0.3932,27929.0,27928.0,0.001]
[1680465755799,0.003,27929.0,27928.0,0.05]
[1680465755997,0.05782299,27929.0,27928.0,0.05]
[1680465756199,0.003,27929.0,27928.0,0.05]
[1680465757097,0.003,27929.0,27928.0,0.051]
[1680465757592,0.053,27929.0,27928.0,0.001]
[1680465757792,0.03076662,27929.0,27928.0,0.001]
[1680465758194,0.08076662,27929.0,27928.0,0.001]
[1680465758399,0.03076662,27929.0,27928.0,0.001]
[1680465758899,0.03076662,27929.0,27928.0,0.051]
[1680465759301,0.03076662,27929.0,27928.0,0.1402]
[1680465759503,0.3898,27935.0,27929.0,0.05]
[1680465759701,0.05,27934.0,27932.0,0.0895]
[1680465760002,0.07429796,27934.0,27933.0,0.1395]
[1680465760194,0.02429796,27934.0,27933.0,0.1395]
[1680465760994,0.02729796,27934.0,27933.0,0.1425]
[1680465761999,0.003,27934.0,27933.0,0.2311]
[1680465762200,0.05,27940.0,27934.0,0.05]
[1680465762400,0.10429304,27940.0,27939.0,0.0895]
[1680465762606,0.05,27940.0,27939.0,0.0895]
[1680465763206,0.3007,27942.0,27939.0,0.229]
[1680465763398,0.3007,27942.0,27941.0,0.0895]
[1680465763603,0.3007,27942.0,27939.0,0.002]
[1680465763897,0.05,27941.0,27939.0,0.002]
[1680465764601,0.05,27941.0,27939.0,0.001]
[1680465764802,0.05,27941.0,27939.0,0.05]
[1680465764997,0.055,27941.0,27939.0,0.051]
[1680465765400,0.055,27941.0,27939.0,0.001]
[1680465765793,0.055,27941.0,27939.0,0.051]
[1680465766300,0.055,27941.0,27939.0,0.001]
[1680465767099,0.01088581,27940.0,27939.0,0.001]
[1680465767905,0.01088581,27940.0,27939.0,0.052]
[1680465768598,0.05,27941.0,27939.0,0.052]
[1680465769198,0.05,27941.0,27939.0,0.002]
[1680465769405,0.05,27941.0,27938.0,0.089]
[1680465769406,0.05,27939.0,27935.0,0.0887]
[1680465770508,0.051,27939.0,27935.0,0.0947]
[1680465771298,0.051,27939.0,27935.0,0.006]
[1680465771299,0.05,27936.0,27935.0,0.006]
[1680465772301,0.05,27936.0,27933.0,0.0889]
[1680465772503,0.053,27936.0,27935.0,0.006]
[1680465772902,0.06638786,27936.0,27935.0,0.006]
[1680465775000,0.1209977,27936.0,27935.0,0.006]
[1680465776503,0.0709977,27936.0,27935.0,0.006]
[1680465776703,0.1209977,27936.0,27935.0,0.006]
[1680465777009,0.0709977,27936.0,27935.0,0.006]
[1680465777402,0.1209977,27936.0,27935.0,0.006]
[1680465777806,0.0709977,27936.0,27935.0,0.006]
[1680465778111,0.1209977,27936.0,27935.0,0.006]
[1680465778507,0.0709977,27936.0,27935.0,0.006]
[1680465779106,0.0709977,27936.0,27935.0,0.0955]
[1680465779311,0.01338786,27936.0,27935.0,0.0895]
[1680465779508,0.001,27936.0,27935.0,0.0945]
[1680465780210,0.001,27936.0,27935.0,0.4452]
[1680465781807,0.35344886,27943.0,27936.0,0.05]
[1680465782008,0.06270548,27942.0,27941.0,0.0895]
[1680465782608,0.01270548,27942.0,27941.0,0.0895]
[1680465783110,0.01270548,27942.0,27941.0,0.3896]
[1680465783314,0.01270548,27942.0,27941.0,0.4791]
[1680465783515,0.3007,27946.0,27942.0,0.05]
[1680465783713,0.3007,27946.0,27945.0,0.089]
[1680465783911,0.05,27947.0,27945.0,0.089]
[1680465784109,0.3507,27948.0,27946.0,0.0889]
[1680465784315,0.3507,27948.0,27946.0,0.1389]
[1680465784915,0.015,27947.0,27946.0,0.1389]
[1680465785522,0.015,27948.0,27946.0,0.2304]
[1680465785715,0.015,27948.0,27947.0,0.1387]
[1680465786120,0.015,27948.0,27947.0,0.0887]
[1680465786319,0.3157,27948.0,27946.0,0.002]
[1680465786519,0.1393,27947.0,27938.0,0.3507]
[1680465786823,0.3007,27945.0,27941.0,0.0895]
[1680465787230,0.05,27944.0,27941.0,0.0895]
[1680465787932,0.05,27944.0,27941.0,0.0905]
[1680465788423,0.05,27944.0,27941.0,0.0895]
[1680465790430,0.3007,27945.0,27943.0,0.0889]
[1680465790633,0.3007,27945.0,27944.0,0.0895]
[1680465791425,0.3077,27945.0,27944.0,0.0904]
[1680465791829,0.05,27949.0,27944.0,0.4804]
[1680465792134,0.05,27949.0,27948.0,0.0894]
[1680465792838,0.05,27950.0,27948.0,0.0894]
[1680465793133,0.006,27949.0,27948.0,0.0894]
[1680465793841,0.006,27949.0,27948.0,0.09132098]
[1680465794136,0.006,27949.0,27948.0,0.18072098]
[1680465794929,0.006,27949.0,27948.0,0.48142098]
[1680465795125,0.35441602,27951.0,27949.0,0.05]
[1680465795325,0.35441602,27951.0,27950.0,0.0894]
[1680465796234,0.35441602,27951.0,27950.0,0.0904]
[1680465797036,0.35441602,27951.0,27950.0,0.001]
[1680465798842,0.05,27950.0,27949.0,0.0888]
[1680465799833,0.05,27950.0,27949.0,0.1028]
[1680465802443,0.10371602,27951.0,27949.0,0.1028]
[1680465802836,0.10371602,27951.0,27950.0,0.00423102]
[1680465803930,0.05371602,27951.0,27950.0,0.00423102]
[1680465804136,0.3507,27952.0,27950.0,0.00423102]
[1680465804341,0.3507,27952.0,27951.0,0.0892]
[1680465804541,0.40312226,27952.0,27951.0,0.0892]
[1680465804742,0.35312226,27952.0,27951.0,0.0892]
[1680465804940,0.05,27954.0,27951.0,0.0892]
[1680465805138,0.05,27954.0,27952.0,0.1387]
[1680465805335,0.05,27954.0,27952.0,0.0887]
[1680465805736,0.10463267,27954.0,27952.0,0.0887]
[1680465805941,0.05,27954.0,27952.0,0.0887]
[1680465806141,0.053,27954.0,27952.0,0.0897]
[1680465807145,0.05,27954.0,27953.0,0.0888]
[1680465807339,0.053,27954.0,27953.0,0.0888]
[1680465807536,0.3007,27955.0,27952.0,0.0887]
[1680465807736,0.3007,27955.0,27953.0,0.05]
[1680465807737,0.003,27954.0,27953.0,0.05]
[1680465807933,0.003,27954.0,27953.0,0.1392]
[1680465808137,0.053,27954.0,27953.0,0.1392]
[1680465808550,0.05,27954.0,27953.0,0.1392]
[1680465808738,0.003,27954.0,27953.0,0.1392]
[1680465808940,0.053,27954.0,27953.0,0.1392]
[1680465809138,0.053,27954.0,27953.0,0.0892]
[1680465809536,0.003,27954.0,27953.0,0.0892]
[1680465809941,0.05379394,27956.0,27953.0,0.0892]
[1680465810141,0.3101,27957.0,27952.0,0.1394]
[1680465810142,0.003,27954.0,27952.0,0.1394]
[1680465810447,0.003,27954.0,27953.0,0.0894]
[1680465810844,0.05,27956.0,27953.0,0.0894]
[1680465811043,0.05,27959.0,27955.0,0.0888]
[1680465811239,0.05,27959.0,27958.0,0.089]
[1680465811947,0.10421904,27959.0,27958.0,0.089]
[1680465812250,0.3507,27960.0,27958.0,0.089]
[1680465812445,0.05,27961.0,27958.0,0.089]
[1680465812746,0.05,27961.0,27960.0,0.089]
[1680465813341,0.05,27962.0,27960.0,0.089]
[1680465813541,0.05,27962.0,27961.0,0.0894]
[1680465813746,0.3507,27963.0,27961.0,0.139]
[1680465814049,0.3507,27963.0,27962.0,0.0892]
[1680465814447,0.05,27963.0,27960.0,0.09]
[1680465814750,0.053,27963.0,27961.0,0.002]
[1680465815050,0.053,27963.0,27962.0,0.0892]
[1680465815647,0.05,27963.0,27962.0,0.0892]
[1680465815950,0.067,27963.0,27962.0,0.0912]
[1680465816150,0.017,27963.0,27962.0,0.0912]
[1680465817947,0.017,27963.0,27962.0,0.11108691]
[1680465818346,0.017,27963.0,27962.0,0.02188691]
[1680465819250,0.067,27963.0,27962.0,0.02188691]
[1680465820748,0.017,27963.0,27962.0,0.11108691]
[1680465822243,0.3507,27965.0,27962.0,0.10908691]
[1680465822444,0.017,27963.0,27962.0,0.11108691]